fUST/lending_fUST_20250726
["ID","MTS","AMOUNT","RATE_DAILY","PERIOD"]
[375010810,1753500647930,-460.0,0.00019452,2]
[375010811,1753500647948,-460.0,0.00019452,2]
[375010812,1753500647958,-1680.3,0.00019452,2]
[375010813,1753500647967,-437.29837844,0.00019452,2]
[375010814,1753500647977,-460.0,0.00019452,2]
[375010815,1753500647987,-460.0,0.00019452,2]
[375010816,1753500647996,-460.0,0.00019452,2]
[375010817,1753500648006,-460.0,0.00019452,2]
[375010818,1753500648015,-460.0,0.00019452,2]
[375010819,1753500648024,-460.0,0.00019452,2]
[375010820,1753500648034,-1185.72,0.00019452,2]
[375010821,1753500648043,-196.65532082,0.00019452,2]
[375010822,1753500648052,-460.0,0.00019452,2]
[375010823,1753500648062,-1644.57,0.00019452,2]
[375010824,1753500648071,-668.12,0.00019452,2]
[375010825,1753500648081,-460.0,0.00019452,2]
[375010826,1753500648090,-460.0,0.00019452,2]
[375010827,1753500648100,-1935.66,0.00019452,2]
[375010828,1753500648109,-565.61,0.00019452,2]
[375010829,1753500648119,-460.0,0.00019452,2]
[375010830,1753500648129,-460.0,0.00019452,2]
[375010831,1753500648139,-460.0,0.00019452,2]
[375010832,1753500648149,-460.0,0.00019452,2]
[375010833,1753500648159,-460.0,0.00019452,2]
[375010834,1753500648169,-460.0,0.00019452,2]
[375010835,1753500648179,-460.0,0.00019452,2]
[375010836,1753500648189,-4827.21,0.00019452,2]
[375010837,1753500648198,-460.0,0.00019452,2]
[375010838,1753500648208,-460.0,0.00019452,2]
[375010839,1753500648217,-460.0,0.00019452,2]
[375010840,1753500648228,-460.0,0.00019452,2]
[375010841,1753500648237,-466.4110347,0.00019452,2]
[375010842,1753500648247,-460.0,0.00019452,2]
[375010843,1753500648256,-575.46883416,0.00019452,2]
[375010844,1753500648266,-460.0,0.00019452,2]
[375010845,1753500648275,-460.0,0.00019452,2]
[375010846,1753500648285,-467.3000839,0.00019452,2]
[375010847,1753500648295,-461.92713244,0.00019452,2]
[375010848,1753500648304,-1474.74,0.00019452,2]
[375010849,1753500648314,-460.0,0.00019452,2]
[375010850,1753500648324,-460.0,0.00019452,2]
[375010851,1753500648333,-460.0,0.00019452,2]
[375010852,1753500648343,-437.13363146,0.00019452,2]
[375010853,1753500648352,-460.0,0.00019452,2]
[375010854,1753500648361,-460.0,0.00019452,2]
[375010855,1753500648371,-460.0,0.00019452,2]
[375010856,1753500648380,-460.0,0.00019452,2]
[375010857,1753500648389,-460.0,0.00019452,2]
[375010858,1753500648399,-771.15,0.00019452,2]
[375010859,1753500648408,-460.0,0.00019452,2]
[375010860,1753500648419,-460.0,0.00019452,2]
[375010861,1753500648428,-460.0,0.00019452,2]
[375010862,1753500648438,-460.0,0.00019452,2]
[375010863,1753500648448,-460.0,0.00019452,2]
[375010864,1753500648460,-460.0,0.00019452,2]
[375010865,1753500648470,-460.0,0.00019452,2]
[375010866,1753500648481,-465.17990736,0.00019452,2]
[375010867,1753500648490,-460.0,0.00019452,2]
[375010868,1753500648501,-460.0,0.00019452,2]
[375010869,1753500648510,-462.04788041,0.00019452,2]
[375010870,1753500648520,-708.62,0.00019452,2]
[375010871,1753500648530,-460.0,0.00019452,2]
[375010872,1753500648541,-460.0,0.00019452,2]
[375010873,1753500648550,-460.0,0.00019452,2]
[375010874,1753500648560,-460.0,0.00019452,2]
[375010875,1753500648570,-1112.84,0.00019452,2]
[375010877,1753500648580,-460.0,0.00019452,2]
[375010879,1753500648589,-469.88118433,0.00019452,2]
[375010881,1753500648598,-460.0,0.00019452,2]
[375010882,1753500648608,-583.79,0.00019452,2]
[375010883,1753500648617,-460.0,0.00019452,2]
[375010884,1753500648627,-460.0,0.00019452,2]
[375010885,1753500648636,-460.0,0.00019452,2]
[375010886,1753500648646,-460.0,0.00019452,2]
[375010887,1753500648655,-489.14,0.00019452,2]
[375010888,1753500648665,-460.0,0.00019452,2]
[375010889,1753500648675,-333.47349477,0.00019452,2]
[375010890,1753500648685,-1109.33,0.00019452,2]
[375010891,1753500648694,-460.0,0.00019452,2]
[375010892,1753500648704,-460.0,0.00019452,2]
[375010893,1753500648713,-460.0,0.00019452,2]
[375010894,1753500648723,-293.46693645,0.00019452,2]
[375010895,1753500648734,-460.0,0.00019452,2]
[375010896,1753500648744,-460.0,0.00019452,2]
[375010897,1753500648753,-460.0,0.00019452,2]
[375010898,1753500648763,-427.06015107,0.00019452,2]
[375010899,1753500648773,-461.7955576,0.00019452,2]
[375010900,1753500648783,-468.18460087,0.00019452,2]
[375010901,1753500648792,-460.0,0.00019452,2]
[375010902,1753500648802,-1149.64,0.00019452,2]
[375010903,1753500648813,-578.40880658,0.00019452,2]
[375010904,1753500648829,-500.0,0.00019452,2]
[375010905,1753500648839,-451.28443905,0.00019473,2]
[375010906,1753500648849,-500.0,0.00019473,2]
[375010907,1753500648858,-500.0,0.00019473,2]
[375010908,1753500648868,-500.0,0.00019473,2]
[375010909,1753500648878,-501.85948839,0.00019473,2]
[375010910,1753500648887,-502.00525907,0.00019473,2]
[375010911,1753500648896,-500.0,0.00019473,2]
[375010912,1753500648906,-508.46080504,0.00019473,2]
[375010913,1753500648915,-500.0,0.00019473,2]
[375010914,1753500648925,-3824.42336752,0.000195,2]
[375010915,1753500648934,-424506.06932662,0.000195,2]
[375010916,1753500649145,-2838.30371467,0.000195,2]
[375010917,1753500649235,-207.51569965,0.00019178,2]
[375010918,1753500649245,-568.82132003,0.00019178,2]
[375010919,1753500649255,-463.6480248,0.00019452,2]
[375010920,1753500649264,-2193.85545993,0.000195,2]
[375010921,1753500649276,-7809.49249049,0.000195,2]
[375010922,1753500649292,-340.365,0.000195,2]
[375010923,1753500649679,-279.41166736,0.000195,2]
[375010924,1753500649691,-1575.8035918,0.000195,2]
[375010925,1753500649705,-4253.72881233,0.000195,2]
[375010926,1753500649719,-34034.26152748,0.000195,2]
[375010927,1753500649736,-12144.07614824,0.000195,2]
[375010928,1753500649749,-17688.12058463,0.000195,2]
[375010929,1753500649763,-16165.3347427,0.000195,2]
[375010930,1753500649778,-6902.00294463,0.000195,2]
[375010931,1753500649788,-1591.33808392,0.00019534,2]
[375010932,1753500649802,-1856.99894519,0.00019534,2]
[375010933,1753500649812,-468.77,0.0001965,2]
[375010934,1753500649822,-1001.52123984,0.00019721,2]
[375010935,1753500649831,-504.89324726,0.00019721,2]
[375010936,1753500649841,-151.0,0.00019721,2]
[375010937,1753500649850,-151.0,0.00019721,2]
[375010938,1753500649860,-431.350352,0.00019721,2]
[375010939,1753500649871,-431.350352,0.00019721,2]
[375010940,1753500649880,-151.0,0.00019726,2]
[375010941,1753500649890,-151.0,0.00019726,2]
[375010942,1753500649899,-151.0,0.00019726,2]
[375010944,1753500649908,-151.374827,0.00019726,2]
[375010946,1753500649918,-151.0,0.00019726,2]
[375010947,1753500649927,-151.0,0.00019726,2]
[375010948,1753500649937,-151.0,0.00019726,2]
[375010949,1753500649946,-151.0,0.00019726,2]
[375010950,1753500649956,-151.0,0.00019726,2]
[375010951,1753500649966,-151.0,0.00019726,2]
[375010952,1753500649975,-151.466276,0.00019726,2]
[375010953,1753500649986,-159.73287619,0.00019726,2]
[375010954,1753500650001,-300.26712381,0.00019726,2]
[375010955,1753500650011,-151.0,0.00019726,2]
[375010956,1753500650021,-168.605907,0.00019726,2]
[375010957,1753500650031,-168.605907,0.00019726,2]
[375010958,1753500650040,-460.0,0.00019726,2]
[375010959,1753500650050,-460.0,0.00019726,2]
[375010960,1753500650059,-460.0,0.00019726,2]
[375010961,1753500650069,-460.0,0.00019726,2]
[375010962,1753500650078,-460.0,0.00019726,2]
[375010963,1753500650088,-478.46212285,0.00019726,2]
[375010964,1753500650097,-460.0,0.00019726,2]
[375010965,1753500650107,-553.24006206,0.00019726,2]
[375010966,1753500650117,-465.31979679,0.00019726,2]
[375010967,1753500650126,-460.0,0.00019726,2]
[375010968,1753500650136,-460.0,0.00019726,2]
[375010969,1753500650145,-460.0,0.00019726,2]
[375010970,1753500650155,-460.0,0.00019726,2]
[375010971,1753500650165,-460.0,0.00019726,2]
[375010972,1753500650174,-460.0,0.00019726,2]
[375010973,1753500650184,-245.84,0.00019726,2]
[375010974,1753500650194,-169.02137378,0.00019726,2]
[375010975,1753500650203,-460.0,0.00019726,2]
[375010976,1753500650212,-460.0,0.00019726,2]
[375010977,1753500650222,-460.0,0.00019726,2]
[375010978,1753500650231,-460.0,0.00019726,2]
[375010979,1753500650240,-460.0,0.00019726,2]
[375010980,1753500650250,-435.03517223,0.00019726,2]
[375010981,1753500650261,-460.0,0.00019726,2]
[375010982,1753500650271,-494.63700847,0.00019726,2]
[375010983,1753500650281,-460.0,0.00019726,2]
[375010984,1753500650292,-460.0,0.00019726,2]
[375010985,1753500650301,-460.0,0.00019726,2]
[375010986,1753500650310,-460.0,0.00019726,2]
[375010987,1753500650319,-460.0,0.00019726,2]
[375010988,1753500650329,-460.0,0.00019726,2]
[375010989,1753500650339,-341.97016843,0.00019726,2]
[375010990,1753500650348,-460.0,0.00019726,2]
[375010991,1753500650358,-460.0,0.00019726,2]
[375010992,1753500650368,-610.56,0.00019726,2]
[375010993,1753500650378,-460.0,0.00019726,2]
[375010994,1753500650388,-460.0,0.00019726,2]
[375010995,1753500650398,-460.0,0.00019726,2]
[375010996,1753500650407,-494.25,0.00019726,2]
[375010997,1753500650417,-524.98,0.00019726,2]
[375010998,1753500650426,-547.79122235,0.00019726,2]
[375010999,1753500650436,-460.0,0.00019726,2]
[375011000,1753500650445,-153.041534,0.00019726,2]
[375011001,1753500650455,-460.0,0.00019726,2]
[375011002,1753500650468,-151.0,0.00019726,2]
[375011003,1753500650478,-466.37335418,0.00019726,2]
[375011004,1753500650487,-460.0,0.00019726,2]
[375011005,1753500650497,-460.0,0.00019726,2]
[375011006,1753500650506,-460.0,0.00019726,2]
[375011007,1753500650516,-481.76224941,0.00019726,2]
[375011008,1753500650525,-460.0,0.00019726,2]
[375011009,1753500650536,-460.0,0.00019726,2]
[375011010,1753500650545,-460.0,0.00019726,2]
[375011011,1753500650555,-460.0,0.00019726,2]
[375011012,1753500650564,-460.0,0.00019726,2]
[375011013,1753500650574,-460.0,0.00019726,2]
[375011014,1753500650584,-460.0,0.00019726,2]
[375011015,1753500650593,-460.0,0.00019726,2]
[375011016,1753500650602,-460.0,0.00019726,2]
[375011017,1753500650612,-460.0,0.00019726,2]
[375011018,1753500650621,-460.0,0.00019726,2]
[375011019,1753500650630,-460.0,0.00019726,2]
[375011020,1753500650639,-460.0,0.00019726,2]
[375011021,1753500650648,-460.0,0.00019726,2]
[375011022,1753500650658,-460.0,0.00019726,2]
[375011023,1753500650736,-460.0,0.00019726,2]
[375011024,1753500650747,-587.16336856,0.00019726,2]
[375011025,1753500650756,-464.16626184,0.00019726,2]
[375011026,1753500650766,-460.0,0.00019726,2]
[375011027,1753500650775,-460.0,0.00019726,2]
[375011028,1753500650785,-162.10683791,0.00019726,2]
[375011029,1753500650794,-460.0,0.00019726,2]
[375011030,1753500650803,-460.0,0.00019726,2]
[375011031,1753500650814,-460.0,0.00019726,2]
[375011032,1753500650823,-460.0,0.00019726,2]
[375011033,1753500650832,-460.0,0.00019726,2]
[375011034,1753500650842,-468.1230971,0.00019726,2]
[375011035,1753500650852,-460.0,0.00019726,2]
[375011036,1753500650861,-460.0,0.00019726,2]
[375011037,1753500650871,-460.60684601,0.00019726,2]
[375011038,1753500650880,-460.0,0.00019726,2]
[375011039,1753500650890,-460.0,0.00019726,2]
[375011040,1753500650900,-460.0,0.00019726,2]
[375011041,1753500650909,-271.2726652,0.00019726,2]
[375011042,1753500650918,-460.0,0.00019726,2]
[375011043,1753500650928,-460.0,0.00019726,2]
[375011044,1753500650937,-460.0,0.00019726,2]
[375011045,1753500650947,-460.0,0.00019726,2]
[375011046,1753500650956,-464.61815793,0.00019726,2]
[375011047,1753500650965,-460.0,0.00019726,2]
[375011048,1753500650975,-462.68151993,0.00019726,2]
[375011049,1753500650984,-466.38572723,0.00019726,2]
[375011050,1753500650993,-575.98154319,0.00019726,2]
[375011051,1753500651002,-463.76492655,0.00019726,2]
[375011052,1753500651012,-460.0,0.00019726,2]
[375011053,1753500651022,-460.0,0.00019726,2]
[375011054,1753500651032,-460.0,0.00019726,2]
[375011055,1753500651042,-460.0,0.00019726,2]
[375011056,1753500651051,-460.0,0.00019726,2]
[375011057,1753500651061,-464.4535999,0.00019726,2]
[375011058,1753500651070,-151.0,0.00019726,2]
[375011060,1753500651080,-460.0,0.00019726,2]
[375011061,1753500651090,-460.0,0.00019726,2]
[375011062,1753500651100,-455.59252075,0.00019726,2]
[375011063,1753500651344,-2956.91452975,0.00018986,2]
[375011064,1753500651356,-2043.08547025,0.00018986,2]
[375011065,1753500651365,-460.0,0.00019178,2]
[375011066,1753500651375,-460.0,0.00019178,2]
[375011067,1753500651384,-481.87531725,0.00019178,2]
[375011068,1753500651642,-3.08830992,0.00019178,2]
[375011069,1753500651652,-344.10015449,0.00019178,2]
[375011070,1753500651665,-115.89984551,0.00019178,2]
[375011071,1753500651675,-460.0,0.00019178,2]
[375011072,1753500651684,-460.0,0.00019178,2]
[375011073,1753500651694,-460.0,0.00019452,2]
[375011074,1753500651704,-460.0,0.00019452,2]
[375011075,1753500651713,-460.0,0.00019452,2]
[375011076,1753500651722,-460.0,0.00019452,2]
[375011077,1753500651733,-4.40747925,0.00019726,2]
[375011078,1753500651742,-462.1882313,0.00019726,2]
[375011079,1753500651752,-1262.36,0.00019726,2]
[375011080,1753500651761,-460.0,0.00019726,2]
[375011081,1753500651771,-460.0,0.00019726,2]
[375011082,1753500651780,-460.0,0.00019726,2]
[375011083,1753500651789,-460.0,0.00019726,2]
[375011084,1753500651799,-460.0,0.00019726,2]
[375011085,1753500651808,-151.0,0.00019726,2]
[375011086,1753500651818,-460.0,0.00019726,2]
[375011087,1753500651827,-460.0,0.00019726,2]
[375011088,1753500651837,-460.0,0.00019726,2]
[375011089,1753500651847,-460.0,0.00019726,2]
[375011090,1753500651856,-2949.67,0.00019726,2]
[375011091,1753500651865,-470.40111577,0.00019726,2]
[375011092,1753500651875,-1197.59,0.00019726,2]
[375011093,1753500651885,-3557.8,0.00019726,2]
[375011094,1753500651895,-151.0,0.00019726,2]
[375011095,1753500651904,-460.0,0.00019726,2]
[375011096,1753500651913,-460.0,0.00019726,2]
[375011097,1753500651922,-151.0,0.00019726,2]
[375011098,1753500651932,-460.0,0.00019726,2]
[375011099,1753500651941,-468.18343484,0.00019726,2]
[375011100,1753500651951,-460.0,0.00019726,2]
[375011101,1753500651960,-460.0,0.00019726,2]
[375011102,1753500651969,-151.0,0.00019726,2]
[375011103,1753500651980,-460.0,0.00019726,2]
[375011104,1753500651989,-460.0,0.00019726,2]
[375011105,1753500651999,-460.0,0.00019726,2]
[375011106,1753500652008,-460.0,0.00019726,2]
[375011107,1753500652017,-460.0,0.00019726,2]
[375011108,1753500652027,-465.67685672,0.00019726,2]
[375011109,1753500652037,-460.0,0.00019726,2]
[375011110,1753500652046,-460.0,0.00019726,2]
[375011111,1753500652055,-607.08,0.00019726,2]
[375011112,1753500652065,-460.0,0.00019726,2]
[375011113,1753500652075,-763.83,0.00019726,2]
[375011114,1753500652084,-460.0,0.00019726,2]
[375011115,1753500652094,-464.2699502,0.00019726,2]
[375011116,1753500652103,-460.0,0.00019726,2]
[375011117,1753500652112,-1726.67,0.00019726,2]
[375011118,1753500652122,-460.0,0.00019726,2]
[375011119,1753500652131,-460.0,0.00019726,2]
[375011120,1753500652141,-460.0,0.00019726,2]
[375011121,1753500652151,-151.0,0.00019726,2]
[375011122,1753500652232,-579.51452712,0.00019726,2]
[375011123,1753500652242,-460.0,0.00019726,2]
[375011124,1753500652252,-457.88338043,0.00019726,2]
[375011125,1753500652261,-460.0,0.00019726,2]
[375011126,1753500652271,-460.0,0.00019726,2]
[375011127,1753500652280,-460.0,0.00019726,2]
[375011128,1753500652290,-460.0,0.00019726,2]
[375011129,1753500652299,-460.0,0.00019726,2]
[375011130,1753500652309,-460.0,0.00019726,2]
[375011131,1753500652318,-460.0,0.00019726,2]
[375011132,1753500652328,-1680.3,0.00019726,2]
[375011133,1753500652338,-460.0,0.00019726,2]
[375011134,1753500652348,-460.0,0.00019726,2]
[375011135,1753500652358,-460.0,0.00019726,2]
[375011136,1753500652367,-468.88652089,0.00019726,2]
[375011137,1753500652377,-460.0,0.00019726,2]
[375011138,1753500652388,-460.0,0.00019726,2]
[375011139,1753500652397,-1185.72,0.00019726,2]
[375011140,1753500652406,-460.0,0.00019726,2]
[375011141,1753500652415,-668.12,0.00019726,2]
[375011142,1753500652425,-460.0,0.00019726,2]
[375011143,1753500652434,-441.11745706,0.00019726,2]
[375011144,1753500652444,-1935.66,0.00019726,2]
[375011145,1753500652457,-565.61,0.00019726,2]
[375011146,1753500652472,-460.0,0.00019726,2]
[375011147,1753500652485,-460.0,0.00019726,2]
[375011148,1753500652494,-460.0,0.00019726,2]
[375011149,1753500652506,-280.71521798,0.00019726,2]
[375011150,1753500652516,-469.27915771,0.00019726,2]
[375011151,1753500652525,-460.0,0.00019726,2]
[375011152,1753500652536,-4827.21,0.00019726,2]
[375011153,1753500652546,-466.41534345,0.00019726,2]
[375011154,1753500652555,-460.0,0.00019726,2]
[375011155,1753500652564,-460.0,0.00019726,2]
[375011156,1753500652573,-460.0,0.00019726,2]
[375011157,1753500652583,-460.0,0.00019726,2]
[375011158,1753500652592,-460.0,0.00019726,2]
[375011159,1753500652601,-460.0,0.00019726,2]
[375011160,1753500652611,-1474.74,0.00019726,2]
[375011161,1753500652620,-465.78565925,0.00019726,2]
[375011162,1753500652630,-460.0,0.00019726,2]
[375011163,1753500652640,-460.0,0.00019726,2]
[375011164,1753500652649,-460.0,0.00019726,2]
[375011165,1753500652659,-460.0,0.00019726,2]
[375011166,1753500652668,-460.0,0.00019726,2]
[375011167,1753500652677,-460.0,0.00019726,2]
[375011168,1753500652687,-460.0,0.00019726,2]
[375011169,1753500652696,-771.15,0.00019726,2]
[375011170,1753500652706,-460.0,0.00019726,2]
[375011171,1753500652715,-460.0,0.00019726,2]
[375011172,1753500652724,-460.0,0.00019726,2]
[375011173,1753500652736,-460.0,0.00019726,2]
[375011174,1753500652746,-460.0,0.00019726,2]
[375011175,1753500652755,-425.34364011,0.00019726,2]
[375011176,1753500652764,-460.0,0.00019726,2]
[375011177,1753500652773,-460.0,0.00019726,2]
[375011178,1753500652783,-460.0,0.00019726,2]
[375011179,1753500652792,-708.62,0.00019726,2]
[375011180,1753500652802,-460.0,0.00019726,2]
[375011181,1753500652811,-460.0,0.00019726,2]
[375011182,1753500652821,-460.0,0.00019726,2]
[375011183,1753500652831,-465.59441107,0.00019726,2]
[375011184,1753500652841,-1112.84,0.00019726,2]
[375011185,1753500652850,-460.0,0.00019726,2]
[375011186,1753500652859,-460.0,0.00019726,2]
[375011187,1753500652869,-583.79,0.00019726,2]
[375011188,1753500652878,-460.0,0.00019726,2]
[375011189,1753500652887,-460.0,0.00019726,2]
[375011190,1753500652896,-460.0,0.00019726,2]
[375011191,1753500652906,-470.06454105,0.00019726,2]
[375011192,1753500652915,-489.14,0.00019726,2]
[375011193,1753500652925,-1109.33,0.00019726,2]
[375011194,1753500652934,-460.0,0.00019726,2]
[375011195,1753500652943,-460.0,0.00019726,2]
[375011196,1753500652953,-543.22268405,0.00019726,2]
[375011197,1753500652961,-460.0,0.00019726,2]
[375011198,1753500652972,-460.0,0.00019726,2]
[375011199,1753500652983,-460.0,0.00019726,2]
[375011200,1753500652992,-465.21906098,0.00019726,2]
[375011201,1753500653002,-1149.64,0.00019726,2]
[375011202,1753500653011,-460.0,0.00019726,2]
[375011203,1753500653020,-460.0,0.00019726,2]
[375011204,1753500653031,-500.0,0.00019726,2]
[375011205,1753500653040,-98.27358197,0.00019773,2]
[375011206,1753500653623,-54.65256403,0.00019773,2]
[375011207,1753500653633,-151.0,0.00019773,2]
[375011208,1753500653642,-49.12012393,0.00019773,2]
[375011209,1753500653654,-101.87987607,0.00019773,2]
[375011210,1753500653663,-150.0,0.00019888,2]
[375011211,1753500653740,-209.6133771,0.000199,2]
[375011212,1753500653834,-1871.12281773,0.000199,2]
[375011217,1753501123256,278.355621,0.00013699,2]
[375011238,1753501593099,-2228.12202106,0.00017455,2]
[375011242,1753501799919,432.29181037,0.00017,2]
[375011281,1753501832040,-433.2672863,0.00017689,2]
[375011283,1753501832052,-134.50031775,0.00017988,2]
[375011318,1753501837900,-165.49968225,0.00017988,2]
[375011319,1753501837910,-24900.0,0.00017989,2]
[375011320,1753501837919,-215.61937871,0.00018333,2]
[375011321,1753501837928,-215.52782219,0.00018611,2]
[375011322,1753501837938,-251.27217781,0.00018611,2]
[375011323,1753501837948,-639.69592884,0.000188,2]
[375011324,1753501837957,-375.01,0.00018808,2]
[375011325,1753501838089,-30000.0,0.000189,2]
[375011326,1753501838099,-637.08859131,0.000189,2]
[375011327,1753501838109,-613.17814481,0.000189,2]
[375011328,1753501838118,-150.0,0.00019031,2]
[375011329,1753501838128,-188.51202472,0.00019078,2]
[375011331,1753501838137,-10000.0,0.00019078,2]
[375011333,1753501838147,-2066.02338763,0.00019078,2]
[375011334,1753501838156,-613.17814452,0.00019107,2]
[375011335,1753501838166,-297.68,0.00019168,3]
[375011336,1753501838177,-893.04,0.00019168,3]
[375011338,1753501838187,-502.00525907,0.00019173,2]
[375011339,1753501838196,-460.0,0.00019178,2]
[375011341,1753501838206,-458.5192034,0.00019178,2]
[375011342,1753501838217,-461.58826786,0.00019178,2]
[375011344,1753501838227,-460.0,0.00019178,2]
[375011346,1753501838237,-460.0,0.00019178,2]
[375011349,1753501838246,-460.89160589,0.00019178,2]
[375011350,1753501838255,-461.40349108,0.00019178,2]
[375011353,1753501838265,-460.0,0.00019178,2]
[375011355,1753501838275,-463.02079923,0.00019178,2]
[375011357,1753501838285,-460.0,0.00019178,2]
[375011359,1753501838295,-460.0,0.00019178,2]
[375011361,1753501838304,-462.98605924,0.00019178,2]
[375011363,1753501838313,-500.0,0.00019178,2]
[375011365,1753501838322,-618.3422323,0.00019178,2]
[375011367,1753501838332,-460.0,0.00019178,2]
[375011369,1753501838341,-460.0,0.00019178,2]
[375011371,1753501838350,-460.49675032,0.00019178,2]
[375011373,1753501838363,-460.66407924,0.00019178,2]
[375011375,1753501838372,-461.96784085,0.00019178,2]
[375011377,1753501838381,-460.0,0.00019178,2]
[375011379,1753501838390,-460.0,0.00019178,2]
[375011381,1753501838400,-460.0,0.00019178,2]
[375011383,1753501838410,-461.43464817,0.00019178,2]
[375011385,1753501838419,-460.0,0.00019178,2]
[375011387,1753501838430,-460.94297008,0.00019178,2]
[375011389,1753501838439,-460.0,0.00019178,2]
[375011391,1753501838449,-460.0,0.00019178,2]
[375011393,1753501838458,-460.0,0.00019178,2]
[375011395,1753501838468,-460.0,0.00019178,2]
[375011397,1753501838477,-460.0,0.00019178,2]
[375011399,1753501838486,-460.0,0.00019178,2]
[375011401,1753501838496,-351.31760807,0.00019178,2]
[375011403,1753501838505,-464.04077207,0.00019178,2]
[375011405,1753501838515,-460.0,0.00019178,2]
[375011407,1753501838524,-460.0,0.00019178,2]
[375011409,1753501838533,-460.0,0.00019178,2]
[375011411,1753501838545,-460.0,0.00019178,2]
[375011413,1753501838555,-461.26444577,0.00019178,2]
[375011416,1753501838565,-460.0,0.00019178,2]
[375011417,1753501838575,-460.0,0.00019178,2]
[375011419,1753501838584,-462.87804913,0.00019178,2]
[375011421,1753501838594,-462.12385507,0.00019178,2]
[375011424,1753501838604,-460.0,0.00019178,2]
[375011426,1753501838614,-461.62183362,0.00019178,2]
[375011428,1753501838624,-463.00551266,0.00019178,2]
[375011430,1753501838634,-461.55440217,0.00019178,2]
[375011431,1753501838644,-461.49609007,0.00019178,2]
[375011432,1753501838653,-401.16939626,0.00019178,2]
[375011433,1753501838663,-460.0,0.00019178,2]
[375011434,1753501838672,-463.10008482,0.00019178,2]
[375011435,1753501838682,-460.0,0.00019178,2]
[375011436,1753501838691,-269.4972036,0.00019178,2]
[375011437,1753501838701,-460.0,0.00019178,2]
[375011438,1753501838711,-465.39124234,0.00019178,2]
[375011439,1753501838720,-460.0,0.00019178,2]
[375011440,1753501838729,-461.38332845,0.00019178,2]
[375011441,1753501838739,-460.0,0.00019178,2]
[375011442,1753501838749,-460.0,0.00019178,2]
[375011443,1753501838758,-460.0,0.00019178,2]
[375011444,1753501838768,-460.0,0.00019178,2]
[375011445,1753501838778,-460.0,0.00019178,2]
[375011446,1753501838791,-460.0,0.00019178,2]
[375011447,1753501838801,-460.0,0.00019178,2]
[375011448,1753501838811,-460.0,0.00019178,2]
[375011449,1753501838821,-460.0,0.00019178,2]
[375011450,1753501838832,-460.0,0.00019178,2]
[375011451,1753501838842,-463.25758022,0.00019178,2]
[375011452,1753501838852,-461.75125942,0.00019178,2]
[375011453,1753501838862,-460.0,0.00019178,2]
[375011454,1753501838871,-460.0,0.00019178,2]
[375011455,1753501838881,-460.0,0.00019178,2]
[375011456,1753501838891,-460.0,0.00019178,2]
[375011457,1753501838900,-460.0,0.00019178,2]
[375011458,1753501838910,-462.12675587,0.00019178,2]
[375011459,1753501838920,-462.19313888,0.00019178,2]
[375011460,1753501838929,-460.0,0.00019178,2]
[375011461,1753501838939,-460.0,0.00019178,2]
[375011462,1753501838948,-462.97176585,0.00019178,2]
[375011463,1753501838958,-460.0,0.00019178,2]
[375011464,1753501838968,-460.0,0.00019178,2]